[Event "Marshall CC FIDE Premier November 2024"]
[Site "New York"]
[Date "2024.11.03"]
[Round "4.1"]
[White "Putnam, Liam"]
[Black "Zhu, Linxi"]
[Result "1-0"]
[ECO "D35"]
[WhiteElo "2388"]
[BlackElo "2143"]
[Annotator "TA"]
[PlyCount "121"]
[EventDate "2024.11.01"]
[EventType "swiss"]
[EventCountry "USA"]
[SourceTitle "playchess.com"]
[Source "ChessBase"]
[SourceQuality "1"]
[TimeControl "5400+30"]

{[%evp 19,121,19,45,45,66,52,60,64,83,78,64,68,71,76,80,87,83,84,87,75,133,132,125,83,83,76,64,55,56,38,52,0,0,-10,-12,0,0,-9,-25,-17,0,0,68,74,234,152,262,184,606,575,736,688,819,804,1331,846,6199,1975,2107,696,700,583,927,285,331,258,272,263,264,257,260,266,258,249,398,254,254,256,258,258,340,276,445,445,488,514,614,606,570,536,825,817,845,812,29978,29979,29983,29984,29985,29986,29987,29988,29988,29989]} 1. Nf3 {[%emt 0:03:30]} d5 {[%emt 0:00:09]} 2. d4 {[%emt 0:02:16]} Nf6 {[%emt 0:00:04]} 3. c4 {[%emt 0:00:03]} e6 {[%emt 0:00:45]} 4. Nc3 {[%emt 0:02:17]} Bb4 {[%emt 0:01:52]} 5. cxd5 {[%emt 0:01:35]} exd5 {[%emt 0:00:17]} 6. Bf4 {[%emt 0:00:13]} O-O {[%emt 0:04:19]} 7. e3 {[%emt 0:10:33]} c5 {[%emt 0:04:32]} 8. dxc5 {[%emt 0:17:58]} Bxc5 {[%emt 0:11:40]} 9. Bd3 {[%emt 0:00:25]} Nc6 {[%emt 0:01:27]} 10. O-O {[%emt 0:00:51]} a6 {[%emt 0:08:07]} 11. Rc1 {[%emt 0:04:31]} Be7 {[%emt 0:07:55]} 12. h3 {[%emt 0:05:03] White has more active pieces. The black rooks are passive.} h6 {[%emt 0:00:50]} 13. Ne5 {[%emt 0:02:33]} Bd6 {[%emt 0:11:11]} 14. Nxc6 {[%emt 0:00:13]} bxc6 {[%emt 0:00:05]} 15. Bxd6 {[%emt 0:00:08]} Qxd6 {[%emt 0:00:06]} 16. Na4 {[%emt 0:00:30]} Rb8 {[%emt 0:02:09]} 17. Qd2 {[%emt 0:01:59]} Re8 {[%emt 0:08:54]} 18. b3 {[%emt 0:02:09]} Re5 {[%emt 0:01:31][%cal Oc8h3]} 19. Nc5 {[%emt 0:09:30]} Rh5 {[%emt 0:03:21]} ({Better is} 19... a5) 20. Be2 {[%emt 0:04:28]} (20. Nxa6 $6 Bxh3 21. Nxb8 (21. gxh3 Rxh3 22. f4 Re8 $17) 21... Rg5 $11) 20... Re5 {[%emt 0:09:04]} 21. Qd4 {[%emt 0:03:56]} a5 {[%emt 0:01:24]} 22. Qf4 {[%emt 0:03:34]} Rb4 {[%emt 0:05:13]} 23. Qh2 {[%emt 0:01:48] And now Nd3 would win.} Bf5 {[%emt 0:00:13]} 24. Rfd1 {[%emt 0:03:28]} Qe7 {[%emt 0:01:49][%cal Od5d4]} 25. a3 {[%emt 0:06:57]} (25. Bd3 $1 $14) 25... Rh4 $11 {[%emt 0:01:24][%cal Od5d4]} 26. Qg3 {[%emt 0:06:15]} Nh5 $1 {[%emt 0:01:18]} 27. Bxh5 {[%emt 0:00:28]} Rxh5 {[%emt 0:00:08]} 28. Nd3 $132 {[%emt 0:02:17][%mdl 2048] White is not holding back} Bxd3 {[%emt 0:00:58]} 29. Rxd3 {[%emt 0:00:02]} Reg5 {[%emt 0:01:19]} 30. Qf3 {[%emt 0:00:43]} Qxa3 {[%emt 0:07:44]} ({Black should play} 30... Qe6 $11 31. Kh2 c5) 31. Rxc6 $14 {[%emt 0:00:30]} a4 $2 {[%emt 0:01:27]} (31... Qe7 $16) 32. Kh2 {[%emt 0:02:16] Rc8+ would now be deadly.} ({Weaker is} 32. Rc8+ Kh7 $11) 32... Rf5 {[%emt 0:01:10]} (32... Qa1 $16) 33. Qe2 {[%emt 0:01:26]} Qa1 $2 {[%emt 0:02:12]} (33... axb3 34. f4 Qa4 35. Rb6 $18) (33... Rhg5 34. Qc2 Qb4) 34. f4 $18 {[%emt 0:00:35]} Rh4 {[%emt 0:01:55]} 35. Qc2 {[%emt 0:00:31] aiming for Rd1.} g6 {[%emt 0:00:54]} 36. bxa4 {[%emt 0:00:35] Threatens to win with Rcc3.} Rfh5 {[%emt 0:01:04]} 37. Rd1 {[%emt 0:00:37]} Qa3 {[%emt 0:00:00]} 38. Rc8+ {[%emt 0:00:09]} (38. Rxg6+ $142 fxg6 39. Qxg6+ Kf8 40. Rb1 (40. Qf6+ Ke8 $18) 40... Rxh3+ 41. gxh3 Rxh3+ 42. Kxh3 Qxe3+ 43. Qg3) 38... Kh7 {[%emt 0:00:00][%cal Bg8h7,Bh7g7,Bg7f6][%mdl 32]} 39. Qc3 {[%emt 0:00:33]} (39. Qd2 $142 Rxf4 40. exf4 Qxa4 41. g4) 39... Qxc3 {[%emt 0:00:00]} 40. Rxc3 {[%emt 0:00:03][%mdl 4096] Endgame. KRR-KRR} Kg7 {[%emt 0:00:01]} 41. Rc5 $2 {[%emt 0:01:09]} (41. Kg3) 41... d4 {[%emt 0:01:50]} 42. Rxh5 {[%emt 0:00:06]} Rxh5 {[%emt 0:00:03]} 43. Rxd4 {[%emt 0:00:05] KR-KR} Ra5 {[%emt 0:00:06]} 44. Kg3 {[%emt 0:00:11]} Kf6 {[%emt 0:00:04]} 45. Kf3 {[%emt 0:00:08]} Ke6 {[%emt 0:00:07]} 46. Rb4 {[%emt 0:00:12]} Rc5 {[%emt 0:00:22]} (46... Ke7 {was necessary.} 47. Ke4 Kf8) 47. Rb2 {[%emt 0:00:11] Black must now prevent Rb5.} Ra5 {[%emt 0:00:17]} 48. Rb6+ {[%emt 0:00:21]} Ke7 {[%emt 0:00:05]} 49. Rb4 {[%emt 0:00:02]} Rc5 {[%emt 0:00:05]} 50. Ke4 {[%emt 0:01:41]} Rc3 $2 {[%emt 0:00:23]} (50... Ra5 51. Kd3 Kf6) 51. Rb7+ {[%emt 0:00:19]} Ke6 {[%emt 0:00:06]} 52. Rb6+ {[%emt 0:00:02]} Ke7 {[%emt 0:00:05]} 53. a5 {[%emt 0:00:04]} Ra3 {[%emt 0:00:06]} 54. a6 {[%emt 0:00:10]} h5 {[%emt 0:00:42][%cal Bh6h5,Bh5h4][%mdl 32]} 55. g4 {[%emt 0:00:31]} Ra4+ {[%emt 0:01:29]} 56. Kd5 {[%emt 0:00:22] Hoping for Kc6.} h4 {[%emt 0:00:45]} 57. Kc6 {[%emt 0:00:30]} f5 {[%emt 0:01:20]} 58. gxf5 {[%emt 0:00:06]} gxf5 {[%emt 0:00:04]} 59. Kb7 {[%emt 0:00:15]} Kd7 {[%emt 0:00:32]} 60. a7 {[%emt 0:00:04]} Ra5 {[%emt 0:00:04]} 61. a8=Q {[%emt 0:00:12]} 1-0

[Event "Marshall CC FIDE Premier November 2024"]
[Site "New York"]
[Date "2024.11.03"]
[Round "4.2"]
[White "Hebbar, Eshaan"]
[Black "Muthukumar, Haari"]
[Result "1/2-1/2"]
[ECO "A40"]
[WhiteElo "2130"]
[BlackElo "2168"]
[Annotator "RC"]
[PlyCount "97"]
[EventDate "2024.11.01"]
[EventType "swiss"]
[EventCountry "USA"]
[SourceTitle "playchess.com"]
[Source "ChessBase"]
[SourceQuality "1"]
[TimeControl "5400+30"]

1. d4 {[%emt 0:00:56]} e6 {[%emt 0:00:02]} 2. c4 {[%emt 0:00:51]} b6 {[%emt 0:00:12]} 3. e4 {[%emt 0:00:24]} Bb4+ {[%emt 0:00:05]} 4. Nc3 {[%emt 0:00:09]} Bb7 {[%emt 0:00:43]} 5. Qc2 {[%emt 0:09:30]} Qh4 {[%emt 0:13:15]} 6. Bd3 {[%emt 0:00:22]} f5 {[%emt 0:03:26]} 7. g3 {[%emt 0:02:01]} Qe7 {[%emt 0:03:38]} 8. Nge2 {[%emt 0:11:32]} Nf6 {[%emt 0:02:52]} 9. f3 {[%emt 0:10:37]} c5 {[%emt 0:10:14]} 10. d5 {[%emt 0:07:26]} fxe4 {[%emt 0:01:22]} 11. fxe4 {[%emt 0:00:02]} e5 {[%emt 0:02:51]} 12. O-O {[%emt 0:00:35]} Bxc3 {[%emt 0:00:04]} 13. Nxc3 {[%emt 0:00:40]} d6 {[%emt 0:04:42]} 14. Nd1 {[%emt 0:01:49]} O-O {[%emt 0:02:13]} 15. Ne3 {[%emt 0:00:07]} Bc8 {[%emt 0:00:16]} 16. Qe2 {[%emt 0:04:49]} Na6 {[%emt 0:03:18]} 17. a3 {[%emt 0:01:33]} Bh3 {[%emt 0:01:28]} 18. Rf2 {[%emt 0:00:58]} Qd7 {[%emt 0:00:57]} 19. Bd2 {[%emt 0:12:19]} Nc7 {[%emt 0:02:58]} 20. Qd1 {[%emt 0:11:00]} Ng4 {[%emt 0:04:16]} 21. Nxg4 {[%emt 0:00:20]} Bxg4 {[%emt 0:00:04]} 22. Rxf8+ {[%emt 0:00:59]} Rxf8 {[%emt 0:00:04]} 23. Be2 {[%emt 0:00:02]} Bxe2 {[%emt 0:01:56]} 24. Qxe2 {[%emt 0:00:01]} Qa4 {[%emt 0:00:56]} 25. Bg5 {[%emt 0:03:04]} Qd7 {[%emt 0:05:41]} 26. b3 {[%emt 0:07:27]} h6 {[%emt 0:01:13]} 27. Be3 {[%emt 0:00:03]} Ne8 {[%emt 0:00:11]} 28. Re1 {[%emt 0:04:36]} Qh3 {[%emt 0:03:50]} 29. Qg2 {[%emt 0:01:19]} Qg4 {[%emt 0:00:43]} 30. h3 {[%emt 0:00:55]} Qg6 {[%emt 0:00:08]} 31. g4 {[%emt 0:00:28]} Nf6 {[%emt 0:00:30]} 32. Bd2 {[%emt 0:00:25]} Nh7 {[%emt 0:00:43]} 33. h4 {[%emt 0:02:01]} Nf6 {[%emt 0:06:37]} 34. g5 {[%emt 0:00:05]} hxg5 {[%emt 0:00:17]} 35. Bxg5 {[%emt 0:00:06]} Rf7 {[%emt 0:00:31]} 36. Re3 {[%emt 0:02:09]} Nh5 {[%emt 0:03:00]} 37. Qg4 {[%emt 0:02:11]} Nf4 {[%emt 0:03:27]} 38. Kh2 {[%emt 0:00:28]} Kh7 {[%emt 0:01:32]} 39. Qd1 {[%emt 0:04:25]} Rf8 {[%emt 0:01:49]} 40. Qg4 {[%emt 0:00:19]} Rf7 {[%emt 0:00:09]} 41. Qd1 {[%emt 0:00:06]} Nh5 {[%emt 0:00:11]} 42. Rf3 {[%emt 0:01:12]} Nf4 {[%emt 0:00:56]} 43. Re3 {[%emt 0:00:04]} Nh5 {[%emt 0:04:56]} 44. Rf3 {[%emt 0:00:03]} Nf6 {[%emt 0:00:52]} 45. Bxf6 {[%emt 0:00:13]} Rxf6 {[%emt 0:00:37]} 46. Rxf6 {[%emt 0:00:11]} Qxf6 {[%emt 0:00:45]} 47. Qh5+ {[%emt 0:00:11]} Kg8 {[%emt 0:00:30]} 48. Qe8+ {[%emt 0:00:22]} Kh7 {[%emt 0:00:12]} 49. Qh5+ {[%emt 0:00:02]} 1/2-1/2

[Event "Marshall CC FIDE Premier November 2024"]
[Site "New York"]
[Date "2024.11.03"]
[Round "4.3"]
[White "Marsh, James J"]
[Black "Paragua, Megan Althea"]
[Result "0-1"]
[ECO "D37"]
[WhiteElo "2049"]
[BlackElo "2190"]
[Annotator "RC"]
[PlyCount "70"]
[EventDate "2024.11.01"]
[EventType "swiss"]
[EventCountry "USA"]
[SourceTitle "playchess.com"]
[Source "ChessBase"]
[SourceQuality "1"]
[TimeControl "5400+30"]

1. d4 {[%emt 0:00:01]} Nf6 {[%emt 0:04:44]} 2. c4 {[%emt 0:00:11]} e6 {[%emt 0:00:08]} 3. Nf3 {[%emt 0:00:06]} d5 {[%emt 0:00:06]} 4. Nc3 {[%emt 0:00:06]} Be7 {[%emt 0:00:07]} 5. Bf4 {[%emt 0:00:35]} O-O {[%emt 0:00:12]} 6. e3 {[%emt 0:00:04]} c5 {[%emt 0:00:04]} 7. dxc5 {[%emt 0:00:23]} Bxc5 {[%emt 0:00:09]} 8. Qc2 {[%emt 0:00:05]} Nc6 {[%emt 0:01:00]} 9. a3 {[%emt 0:00:12]} Re8 {[%emt 0:00:07]} 10. O-O-O {[%emt 0:04:42]} e5 {[%emt 0:10:56]} 11. Bg5 {[%emt 1:29:35]} d4 {[%emt 0:00:32]} 12. Nd5 {[%emt 0:00:00]} Be6 {[%emt 0:03:48]} 13. Bxf6 {[%emt 0:00:00]} gxf6 {[%emt 0:00:33]} 14. exd4 {[%emt 0:00:00]} Nxd4 {[%emt 0:00:48]} 15. Nxd4 {[%emt 0:00:00]} Bxd4 {[%emt 0:00:21]} 16. Ne3 {[%emt 0:00:00]} Qb6 {[%emt 0:05:20]} 17. Kb1 {[%emt 0:00:00]} f5 {[%emt 0:04:34]} 18. Nd5 {[%emt 0:00:00]} Bxd5 {[%emt 0:03:37]} 19. cxd5 {[%emt 0:00:00]} e4 {[%emt 0:03:58]} 20. Qd2 {[%emt 0:00:00]} Bg7 {[%emt 0:03:05]} 21. Bc4 {[%emt 0:00:00]} Rac8 {[%emt 0:07:26]} 22. Ba2 {[%emt 0:00:00]} Rc3 {[%emt 0:04:53]} 23. d6 {[%emt 0:00:00]} Rd8 {[%emt 0:06:57]} 24. Qe2 {[%emt 0:00:00]} Rxa3 {[%emt 0:08:46]} 25. d7 {[%emt 0:00:00]} Ra4 {[%emt 0:04:57]} 26. Rd2 {[%emt 0:00:00]} Qa5 {[%emt 0:01:41]} 27. Rd5 {[%emt 0:00:00]} Qb6 {[%emt 0:05:56]} 28. Rhd1 {[%emt 0:00:00]} Rb4 {[%emt 0:03:15]} 29. R1d2 {[%emt 0:00:00]} a5 {[%emt 0:01:22]} 30. Bc4 {[%emt 0:00:00]} Qc6 {[%emt 0:02:05]} 31. Bb5 {[%emt 0:00:00]} Qf6 {[%emt 0:01:47]} 32. Rd6 {[%emt 0:00:00]} Rxb2+ {[%emt 0:00:44]} 33. Rxb2 {[%emt 0:00:00]} Qxd6 {[%emt 0:00:08]} 34. Rb3 {[%emt 0:00:00]} Qd4 {[%emt 0:00:25]} 35. Qe3 {[%emt 0:00:00]} Qd1+ {[%emt 0:00:37]} 0-1

[Event "Marshall CC FIDE Premier November 2024"]
[Site "New York"]
[Date "2024.11.03"]
[Round "4.4"]
[White "Gartenlaub, Corin"]
[Black "Chin, Spencer"]
[Result "1/2-1/2"]
[ECO "B41"]
[WhiteElo "1895"]
[BlackElo "2035"]
[Annotator "RC"]
[PlyCount "42"]
[EventDate "2024.11.01"]
[EventType "swiss"]
[EventCountry "USA"]
[SourceTitle "playchess.com"]
[Source "ChessBase"]
[SourceQuality "1"]
[TimeControl "5400+30"]

1. e4 {[%emt 0:00:01]} c5 {[%emt 0:01:25]} 2. Nf3 {[%emt 0:00:03]} e6 {[%emt 0:00:05]} 3. d4 {[%emt 0:00:02]} cxd4 {[%emt 0:00:04]} 4. Nxd4 {[%emt 0:00:01]} a6 {[%emt 0:00:34]} 5. c4 {[%emt 0:00:03]} Nf6 {[%emt 0:00:09]} 6. Nc3 {[%emt 0:00:03]} Bb4 {[%emt 0:00:52]} 7. Qd3 {[%emt 0:00:02]} d6 {[%emt 0:00:11]} 8. Be2 {[%emt 0:00:25]} O-O {[%emt 0:01:34]} 9. f3 {[%emt 0:00:58]} d5 {[%emt 0:10:40]} 10. exd5 {[%emt 0:03:52]} exd5 {[%emt 0:01:04]} 11. O-O {[%emt 0:02:22]} Nc6 {[%emt 0:08:54]} 12. cxd5 {[%emt 0:05:07]} Nxd5 {[%emt 0:01:58]} 13. Nxc6 {[%emt 0:00:41]} bxc6 {[%emt 0:00:23]} 14. Nxd5 {[%emt 0:00:14]} cxd5 {[%emt 0:01:01]} 15. Be3 {[%emt 0:01:36]} Re8 {[%emt 0:03:43]} 16. Bd1 {[%emt 0:01:47]} Qe7 {[%emt 0:12:17]} 17. Bf2 {[%emt 0:01:14]} Be6 {[%emt 0:02:37]} 18. Rc1 {[%emt 0:03:37]} Qb7 {[%emt 0:08:40]} 19. Ba4 {[%emt 0:05:34]} Rec8 {[%emt 0:05:28]} 20. Qb3 {[%emt 0:02:28]} Rxc1 {[%emt 0:02:51]} 21. Rxc1 {[%emt 0:00:45]} Qe7 {[%emt 0:36:30]} 1/2-1/2

[Event "Marshall CC FIDE Premier November 2024"]
[Site "New York"]
[Date "2024.11.03"]
[Round "4.5"]
[White "Li, Aiden Linyuan"]
[Black "Tadevosyan, Levon"]
[Result "0-1"]
[ECO "C95"]
[WhiteElo "1923"]
[BlackElo "1867"]
[Annotator "RC"]
[PlyCount "106"]
[EventDate "2024.11.01"]
[EventType "swiss"]
[EventCountry "USA"]
[SourceTitle "playchess.com"]
[Source "ChessBase"]
[SourceQuality "1"]
[TimeControl "5400+30"]

1. e4 {[%emt 0:00:01]} e5 {[%emt 0:14:31]} 2. Nf3 {[%emt 0:00:09]} Nc6 {[%emt 0:00:04]} 3. Bb5 {[%emt 0:00:16]} a6 {[%emt 0:00:07]} 4. Ba4 {[%emt 0:00:04]} Nf6 {[%emt 0:00:07]} 5. O-O {[%emt 0:00:07]} b5 {[%emt 0:00:04]} 6. Bb3 {[%emt 0:00:08]} Be7 {[%emt 0:00:04]} 7. Re1 {[%emt 0:00:13]} d6 {[%emt 0:00:15]} 8. c3 {[%emt 0:00:05]} O-O {[%emt 0:00:06]} 9. h3 {[%emt 0:00:14]} Nb8 {[%emt 0:00:08]} 10. d4 {[%emt 0:00:23]} Nbd7 {[%emt 0:00:05]} 11. Nbd2 {[%emt 0:00:33]} Bb7 {[%emt 0:00:06]} 12. a4 {[%emt 0:09:55]} Re8 {[%emt 0:00:28]} 13. Qc2 {[%emt 0:03:37]} Bf8 {[%emt 0:00:15]} 14. dxe5 {[%emt 0:06:06]} dxe5 {[%emt 0:01:05]} 15. Bxf7+ {[%emt 0:02:53]} Kxf7 {[%emt 0:00:42]} 16. Qb3+ {[%emt 0:00:05]} Ke7 {[%emt 0:02:45]} 17. Ng5 {[%emt 0:01:11]} Qb8 {[%emt 0:16:52]} 18. Ndf3 {[%emt 0:12:17]} Kd8 {[%emt 0:07:45]} 19. Rd1 {[%emt 0:06:17]} Kc8 {[%emt 0:04:50]} 20. Nxe5 {[%emt 0:25:42]} Nxe5 {[%emt 0:13:02]} 21. f4 {[%emt 0:00:34]} Qa7+ {[%emt 0:02:00]} 22. Kh1 {[%emt 0:00:13]} Nxe4 {[%emt 0:05:02]} 23. Nxe4 {[%emt 0:05:21]} Bxe4 {[%emt 0:00:31]} 24. Rf1 {[%emt 0:01:36]} Qb7 {[%emt 0:01:46]} 25. Rg1 {[%emt 0:00:16]} Bc5 {[%emt 0:05:22]} 26. fxe5 {[%emt 0:00:17]} Bxg1 {[%emt 0:00:31]} 27. Kxg1 {[%emt 0:00:08]} Qd5 {[%emt 0:00:16]} 28. Qxd5 {[%emt 0:00:23]} Bxd5 {[%emt 0:00:06]} 29. Bf4 {[%emt 0:00:06]} Kd7 {[%emt 0:00:08]} 30. Kf2 {[%emt 0:00:23]} Ke6 {[%emt 0:00:06]} 31. Ke3 {[%emt 0:00:04]} g5 {[%emt 0:00:17]} 32. Bh2 {[%emt 0:00:14]} Bxg2 {[%emt 0:00:16]} 33. Rg1 {[%emt 0:00:16]} Bxh3 {[%emt 0:00:04]} 34. Rxg5 {[%emt 0:00:07]} bxa4 {[%emt 0:00:11]} 35. Rh5 {[%emt 0:00:12]} Bf5 {[%emt 0:00:04]} 36. Rh4 {[%emt 0:00:08]} Reb8 {[%emt 0:00:20]} 37. Rxa4 {[%emt 0:00:14]} Rxb2 {[%emt 0:00:05]} 38. Bg3 {[%emt 0:00:06]} a5 {[%emt 0:00:16]} 39. Bf4 {[%emt 0:00:14]} Bc2 {[%emt 0:00:07]} 40. Rc4 {[%emt 0:00:05]} a4 {[%emt 0:00:28]} 41. Rxc7 {[%emt 0:00:07]} a3 {[%emt 0:00:08]} 42. c4 {[%emt 0:00:05]} a2 {[%emt 0:00:09]} 43. Rc6+ {[%emt 0:00:03]} Kd7 {[%emt 0:00:13]} 44. Rd6+ {[%emt 0:00:05]} Ke7 {[%emt 0:00:14]} 45. Bg5+ {[%emt 0:00:05]} Kf7 {[%emt 0:00:45]} 46. e6+ {[%emt 0:00:04]} Kg6 {[%emt 0:00:15]} 47. Bd8 {[%emt 0:00:53]} a1=Q {[%emt 0:03:15]} 48. e7+ {[%emt 0:00:08]} Kg7 {[%emt 0:00:13]} 49. e8=N+ {[%emt 0:32:17]} Kf7 {[%emt 0:00:10]} 50. Rd4 {[%emt 0:00:00]} Rb3+ {[%emt 0:00:04]} 51. Kd2 {[%emt 0:00:00]} Qxd4+ {[%emt 0:00:05]} 52. Kxc2 {[%emt 0:00:00]} Rb2+ {[%emt 0:00:02]} 53. Kc1 {[%emt 0:00:00]} Ra1# {[%emt 0:00:05]} 0-1

[Event "Marshall CC FIDE Premier November 2024"]
[Site "New York"]
[Date "2024.11.03"]
[Round "4.6"]
[White "Panuganti, Kireet"]
[Black "Bonin, Jay"]
[Result "1-0"]
[ECO "B02"]
[WhiteElo "2020"]
[BlackElo "2127"]
[Annotator "RC"]
[PlyCount "71"]
[EventDate "2024.11.01"]
[EventType "swiss"]
[EventCountry "USA"]
[SourceTitle "playchess.com"]
[Source "ChessBase"]
[SourceQuality "1"]
[TimeControl "5400+30"]

1. e4 {[%emt 0:14:13]} Nf6 {[%emt 0:00:18]} 2. Nc3 {[%emt 0:00:07]} d5 {[%emt 0:00:29]} 3. exd5 {[%emt 0:00:09]} Nxd5 {[%emt 0:00:08]} 4. d4 {[%emt 0:04:50]} Nxc3 {[%emt 0:07:12]} 5. bxc3 {[%emt 0:00:05]} c5 {[%emt 0:01:21]} 6. Be3 {[%emt 0:06:04]} Qa5 {[%emt 0:00:46]} 7. Qd2 {[%emt 0:01:53]} e6 {[%emt 0:02:21]} 8. Nf3 {[%emt 0:02:44]} Nc6 {[%emt 0:00:54]} 9. Be2 {[%emt 0:04:58]} Be7 {[%emt 0:01:15]} 10. O-O {[%emt 0:00:46]} O-O {[%emt 0:00:13]} 11. Rfb1 {[%emt 0:05:52]} a6 {[%emt 0:03:12]} 12. Qc1 {[%emt 0:09:03]} Qxc3 {[%emt 0:03:57]} 13. Rb3 {[%emt 0:09:07]} Qa5 {[%emt 0:05:30]} 14. dxc5 {[%emt 0:11:19]} Bxc5 {[%emt 0:01:21]} 15. Bh6 {[%emt 0:06:31]} gxh6 {[%emt 0:17:34]} 16. Qxh6 {[%emt 0:01:03]} Be7 {[%emt 0:09:48]} 17. Nd4 {[%emt 0:09:55]} Qe5 {[%emt 0:03:39]} 18. Rh3 {[%emt 0:04:05]} Rd8 {[%emt 0:00:50]} 19. Bd3 {[%emt 0:02:17]} f5 {[%emt 0:02:30]} 20. Qxh7+ {[%emt 0:00:36]} Kf8 {[%emt 0:00:01]} 21. Rg3 {[%emt 0:01:56]} Ke8 {[%emt 0:02:21]} 22. c3 {[%emt 0:02:28]} Nxd4 {[%emt 0:02:40]} 23. Qg6+ {[%emt 0:00:07]} Kd7 {[%emt 0:00:07]} 24. cxd4 {[%emt 0:00:07]} Qf6 {[%emt 0:00:28]} 25. Qh5 {[%emt 0:00:52]} Rh8 {[%emt 0:01:31]} 26. Qd1 {[%emt 0:00:37]} Bd6 {[%emt 0:00:30]} 27. Rc1 {[%emt 0:01:45]} b5 {[%emt 0:00:47]} 28. Qb3 {[%emt 0:00:29]} Rb8 {[%emt 0:02:37]} 29. d5 {[%emt 0:00:27]} Bxg3 {[%emt 0:00:54]} 30. fxg3 {[%emt 0:00:34]} Qd4+ {[%emt 0:00:10]} 31. Kh1 {[%emt 0:00:12]} Rxh2+ {[%emt 0:02:25]} 32. Kxh2 {[%emt 0:00:06]} Bb7 {[%emt 0:00:03]} 33. dxe6+ {[%emt 0:00:11]} Kd6 {[%emt 0:00:19]} 34. Bxf5 {[%emt 0:00:39]} Rh8+ {[%emt 0:00:29]} 35. Bh3 {[%emt 0:00:05]} Bxg2 {[%emt 0:00:21]} 36. Rd1 {[%emt 0:00:27]} 1-0

[Event "Marshall CC FIDE Premier November 2024"]
[Site "New York"]
[Date "2024.11.03"]
[Round "4.7"]
[White "Hoffman, Luc"]
[Black "Goodrich, Elliott"]
[Result "1-0"]
[ECO "C47"]
[WhiteElo "2088"]
[BlackElo "1923"]
[Annotator "RC"]
[PlyCount "101"]
[EventDate "2024.11.01"]
[EventType "swiss"]
[EventCountry "USA"]
[SourceTitle "playchess.com"]
[Source "ChessBase"]
[SourceQuality "1"]
[TimeControl "5400+30"]

1. e4 {[%emt 0:00:01]} e5 {[%emt 0:00:10]} 2. Nf3 {[%emt 0:00:08]} Nc6 {[%emt 0:00:06]} 3. Nc3 {[%emt 0:00:03]} Nf6 {[%emt 0:00:24]} 4. Nd5 {[%emt 0:00:02]} d6 {[%emt 0:00:35]} 5. d4 {[%emt 0:01:14]} exd4 {[%emt 0:00:05]} 6. Bb5 {[%emt 0:02:51]} a6 {[%emt 0:02:45]} 7. Ba4 {[%emt 0:00:24]} Bd7 {[%emt 0:00:19]} 8. Nxd4 {[%emt 0:02:34]} b5 {[%emt 0:02:25]} 9. Nxc6 {[%emt 0:02:02]} Bxc6 {[%emt 0:00:03]} 10. Bb3 {[%emt 0:00:07]} Be7 {[%emt 0:00:56]} 11. O-O {[%emt 0:00:55]} O-O {[%emt 0:00:11]} 12. Re1 {[%emt 0:00:53]} Re8 {[%emt 0:04:30]} 13. c4 {[%emt 0:05:39]} Bb7 {[%emt 0:06:34]} 14. cxb5 {[%emt 0:02:12]} axb5 {[%emt 0:00:06]} 15. Bf4 {[%emt 0:00:14]} Nxd5 {[%emt 0:04:11]} 16. Bxd5 {[%emt 0:00:05]} Bxd5 {[%emt 0:02:20]} 17. Qxd5 {[%emt 0:00:09]} Bf6 {[%emt 0:00:29]} 18. Re2 {[%emt 0:03:17]} Qb8 {[%emt 0:12:54]} 19. Rc1 {[%emt 1:17:10]} Ra4 {[%emt 0:04:25]} 20. b3 {[%emt 0:00:00]} Rd4 {[%emt 0:02:14]} 21. Qc6 {[%emt 0:00:00]} Qa8 {[%emt 0:10:18]} 22. Qxb5 {[%emt 0:00:00]} Rdxe4 {[%emt 0:45:30]} 23. Rxe4 {[%emt 0:00:00]} Rxe4 {[%emt 0:00:00]} 24. Be3 {[%emt 0:00:00]} c5 {[%emt 0:00:00]} 25. Rd1 {[%emt 0:00:00]} h6 {[%emt 0:00:00]} 26. Qe2 {[%emt 0:00:00]} d5 {[%emt 0:00:00]} 27. Qf3 {[%emt 0:00:00]} Qc6 {[%emt 0:00:00]} 28. h3 {[%emt 0:00:00]} d4 {[%emt 0:00:00]} 29. Bd2 {[%emt 0:00:00]} Qe6 {[%emt 0:00:00]} 30. a4 {[%emt 0:00:00]} Re5 {[%emt 0:00:00]} 31. Qd3 {[%emt 0:00:00]} Qc6 {[%emt 0:00:00]} 32. a5 {[%emt 0:00:00]} Re6 {[%emt 0:00:00]} 33. Rc1 {[%emt 0:00:00]} Bg5 {[%emt 0:00:00]} 34. Bxg5 {[%emt 0:00:00]} hxg5 {[%emt 0:00:00]} 35. b4 {[%emt 0:00:00]} Qc7 {[%emt 0:00:42]} 36. bxc5 {[%emt 0:00:00]} Qxa5 {[%emt 0:00:06]} 37. Qxd4 {[%emt 0:00:00]} Qc7 {[%emt 0:00:32]} 38. Qd5 {[%emt 0:00:00]} Re5 {[%emt 0:01:05]} 39. Qa8+ {[%emt 0:00:00]} Kh7 {[%emt 0:00:05]} 40. c6 {[%emt 0:00:00]} Re7 {[%emt 0:00:56]} 41. Qa4 {[%emt 0:00:00]} Kg6 {[%emt 0:00:37]} 42. g3 {[%emt 0:00:00]} Kh6 {[%emt 0:00:58]} 43. Qb5 {[%emt 0:00:00]} f6 {[%emt 0:00:57]} 44. Qd5 {[%emt 0:00:00]} Kh7 {[%emt 0:00:22]} 45. Kg2 {[%emt 0:00:00]} g6 {[%emt 0:00:32]} 46. Rb1 {[%emt 0:00:00]} Qc8 {[%emt 0:00:58]} 47. Rb7 {[%emt 0:00:00]} Rxb7 {[%emt 0:00:26]} 48. cxb7 {[%emt 0:00:00]} Qe8 {[%emt 0:00:04]} 49. Qb3 {[%emt 0:00:00]} Qe4+ {[%emt 0:00:36]} 50. Kh2 {[%emt 0:00:00]} Qd4 {[%emt 0:00:24]} 51. Kg1 {[%emt 0:00:00]} 1-0